bitfinex/quotes_SOLUSD_20250721
["timestamp","ask_amount","ask_price","bid_price","bid_amount"]
[1753114363416,26.0,195.17,195.11,0.03]
[1753114363616,32.76272791,195.12,195.11,0.03]
[1753114363779,56.30468397,195.12,195.11,0.03]
[1753114363983,57.00468397,195.12,195.11,0.03]
[1753114364180,78.10777916,195.12,195.11,0.03]
[1753114364385,78.74841056,195.12,195.11,0.03]
[1753114365278,15.97804394,195.04,195.03,0.03]
[1753114365480,72.30272791,195.04,195.03,0.03]
[1753114365704,16.78468397,195.03,194.92,0.67]
[1753114365878,73.00272791,195.04,194.85,6.5487]
[1753114365879,16.78468397,194.97,194.9,26.0]
[1753114366083,39.56,194.96,194.9,26.0]
[1753114366304,39.56,194.96,194.92,15.97804394]
[1753114366504,39.56,194.96,194.92,16.64804394]
[1753114366983,16.78468397,194.95,194.89,0.67]
[1753114367198,16.78468397,194.93,194.88,5.13136288]
[1753114367414,39.52,194.92,194.86,0.67]
[1753114367592,39.52,194.92,194.87,15.97804394]
[1753114367788,39.52,194.92,194.87,42.64804394]
[1753114368209,39.52,194.92,194.88,5.13136288]
[1753114368411,39.52,194.92,194.88,5.80136288]
[1753114368711,39.52,194.92,194.89,0.67]
[1753114368883,39.52,194.92,194.91,26.0]
[1753114369084,56.26468397,194.95,194.91,42.64804394]
[1753114369790,39.48,194.95,194.92,0.67]
[1753114369991,39.48,194.95,194.91,26.0]
[1753114370186,39.48,194.95,194.91,5.13048215]
[1753114370408,39.48,194.95,194.91,21.77852609]
[1753114370585,39.48,194.95,194.92,0.67]
[1753114371206,39.48,194.95,194.91,5.13048215]
[1753114371787,39.48,194.95,194.92,0.67]
[1753114372204,39.48,194.95,194.9,5.13083632]
[1753114372599,39.48,194.95,194.9,21.77888026]
[1753114372834,39.48,194.95,194.91,16.64804394]
[1753114373008,39.48,194.95,194.91,15.97804394]
[1753114373188,39.48,194.95,194.92,0.67]
[1753114373384,55.45804394,194.95,194.9,5.13083632]
[1753114373614,15.97804394,194.93,194.88,26.67]
[1753114373787,17.42590691,194.94,194.86,15.97804394]
[1753114373984,15.97804394,194.92,194.87,15.97804394]
[1753114374311,39.38,194.91,194.87,0.67]
[1753114374515,39.38,194.91,194.88,5.13136288]
[1753114374993,39.38,194.91,194.83,0.1]
[1753114374994,16.78468397,194.88,194.83,0.1]
[1753114375191,39.36,194.87,194.84,15.97804394]
[1753114375396,39.36,194.87,194.83,21.21068213]
[1753114375593,39.36,194.87,194.83,21.88068213]
[1753114375914,39.36,194.87,194.83,5.90263819]
[1753114376105,16.78468397,194.86,194.83,0.1]
[1753114376313,32.76272791,194.86,194.83,0.1]
[1753114376510,16.61956305,194.85,194.83,0.1]
[1753114376809,39.36,194.84,194.83,0.1]
[1753114377591,56.84468397,194.84,194.83,0.1]
[1753114377820,72.12272791,194.84,194.83,0.1]
[1753114378014,56.14468397,194.84,194.83,0.1]
[1753114378195,0.64145327,194.87,194.83,21.21072371]
[1753114378386,16.78468397,194.86,194.83,5.90267977]
[1753114378585,16.78468397,194.86,194.83,0.1]
[1753114378586,0.64151911,194.85,194.83,0.1]
[1753114378823,16.61956305,194.85,194.83,0.1]
[1753114378991,16.78468397,194.84,194.83,0.1]
[1753114379191,72.78272791,194.84,194.83,0.1]
[1753114379410,72.06272791,194.84,194.83,0.1]
[1753114379624,56.08468397,194.84,194.83,0.1]
[1753114379915,56.50468397,194.84,194.83,0.1]
[1753114380211,72.48272791,194.84,194.83,0.1]
[1753114380623,56.50468397,194.84,194.83,0.1]
[1753114380792,83.64904425,194.84,194.83,0.1]
[1753114380990,109.64904425,194.84,194.83,0.1]
[1753114381335,16.78468397,194.83,194.8,0.03]
[1753114381533,32.76272791,194.81,194.8,0.03]
[1753114381821,72.12272791,194.81,194.75,0.03]
[1753114382018,15.97804394,194.77,194.75,0.03]
[1753114382221,56.78646658,194.77,194.75,0.03]
[1753114382391,33.79451052,194.77,194.75,0.03]
[1753114382590,86.07367144,194.77,194.75,0.03]
[1753114382798,86.07367144,194.77,194.72,0.03]
[1753114382799,26.0,194.73,194.72,0.03]
[1753114382992,98.12272791,194.73,194.72,0.03]
[1753114383194,98.51272791,194.73,194.72,0.03]
[1753114383523,0.64184852,194.75,194.72,0.03]
[1753114383524,16.78468397,194.74,194.72,0.03]
[1753114383694,72.76464235,194.73,194.72,0.03]
[1753114383895,56.78659841,194.73,194.72,0.03]
[1753114384113,17.42659841,194.73,194.72,0.03]
[1753114384636,0.64191444,194.73,194.72,0.03]
[1753114384836,0.64188148,194.74,194.72,16.67804394]
[1753114385131,6.6653,194.82,194.73,16.64804394]
[1753114385436,17.42225463,194.81,194.78,15.97804394]
[1753114385640,0.63757066,194.81,194.8,15.97804394]
[1753114385804,46.60487607,194.88,194.8,15.97804394]
[1753114385805,0.63757066,194.86,194.8,16.64804394]
[1753114386002,0.63757066,194.86,194.8,0.67]
[1753114386306,15.97804394,194.84,194.75,1.18347881]
[1753114386498,0.7,194.85,194.79,5.13373376]
[1753114386703,15.97804394,194.87,194.79,5.13373376]
[1753114386918,0.63757066,194.86,194.79,5.13373376]
[1753114387221,15.97804394,194.84,194.77,5.13399826]
[1753114387427,0.7,194.83,194.77,5.13399826]
[1753114387604,0.63757066,194.82,194.77,5.13399826]
[1753114387800,0.7,194.81,194.73,5.13531556]
[1753114388100,16.6156146,194.8,194.74,15.97804394]
[1753114388522,16.6156146,194.8,194.74,21.1130441]
[1753114388831,0.63757066,194.8,194.75,15.97804394]
[1753114389123,0.63757066,194.8,194.72,0.7]
[1753114389124,16.78468397,194.77,194.72,0.03]
[1753114389325,0.63757066,194.78,194.72,5.1655384]
[1753114389526,73.34272791,194.77,194.72,0.03]
[1753114389709,15.97804394,194.75,194.72,0.03]
[1753114389915,15.97804394,194.73,194.72,0.03]
[1753114390116,0.63757066,194.74,194.72,0.03]
[1753114390337,0.63757066,194.77,194.73,15.97804394]
[1753114390504,0.7,194.8,194.75,15.97804394]
[1753114390505,41.23757066,194.8,194.75,15.97804394]
[1753114390840,16.67804394,194.79,194.73,15.97804394]
[1753114391028,0.63757066,194.78,194.72,0.03]
[1753114391339,0.63757066,194.78,194.74,15.97804394]
[1753114391724,1.33757066,194.78,194.74,15.97804394]
[1753114392032,39.88,194.8,194.74,0.67]
[1753114392340,40.51757066,194.8,194.74,0.67]
[1753114392514,15.97804394,194.78,194.72,0.03]
[1753114392716,15.97804394,194.74,194.72,0.03]
[1753114393010,41.17757066,194.73,194.72,0.03]
[1753114393227,57.1556146,194.73,194.72,0.03]
[1753114393410,73.94029857,194.73,194.72,0.03]
[1753114393841,40.47757066,194.73,194.72,0.03]
[1753114394213,41.17757066,194.73,194.72,0.03]
[1753114394612,40.47757066,194.73,194.72,0.03]
[1753114394823,41.17757066,194.73,194.72,0.03]
[1753114395037,40.45757066,194.73,194.72,0.03]
[1753114395448,0.63757066,194.75,194.72,16.00804394]
[1753114395749,39.8,194.8,194.74,15.97804394]
[1753114395952,39.8,194.8,194.78,15.97804394]
[1753114396154,39.8,194.8,194.73,0.67]
[1753114396451,16.67804394,194.88,194.79,15.97804394]
[1753114396620,0.63757066,194.87,194.84,15.97804394]
[1753114396819,0.63757066,194.87,194.8,5.13347022]
[1753114397019,40.41757066,194.88,194.85,15.97804394]
[1753114397511,39.78,194.88,194.86,15.97804394]
[1753114397717,0.63757066,194.9,194.86,15.97804394]
[1753114397917,0.63757066,194.93,194.89,15.97804394]
[1753114398113,0.63757066,194.93,194.92,15.97804394]
[1753114398334,40.37757066,194.98,194.92,16.64804394]
[1753114398537,40.37757066,194.98,194.94,15.97804394]
[1753114398739,40.37757066,194.98,194.91,5.80033645]
[1753114398931,12.8172929,195.05,194.91,5.80033645]
[1753114398932,0.63757066,195.03,194.97,15.97804394]
[1753114399139,12.8152238,195.09,194.97,15.97804394]
[1753114399140,0.76,195.23,195.05,26.0]
[1753114399461,0.76,195.23,195.02,57.95608788]
[1753114399462,0.7,195.19,195.11,15.97804394]
[1753114400322,0.7,195.19,195.08,1.07261021]
[1753114400518,5.82326355,195.19,195.11,15.97804394]
[1753114400849,15.97804394,195.15,195.09,15.97804394]
[1753114401052,15.97804394,195.15,195.08,5.12586566]
[1753114401262,0.7,195.16,195.11,15.97804394]
[1753114401458,5.12326355,195.19,195.11,15.97804394]
[1753114401459,0.06,195.23,195.11,15.97804394]
[1753114401746,0.06,195.23,195.22,15.97804394]
[1753114401939,30.06,195.23,195.22,15.97804394]
[1753114402146,0.06,195.23,195.22,15.97804394]
[1753114402950,0.06,195.23,195.19,26.5]
[1753114403244,0.06,195.23,195.22,15.97804394]
[1753114403454,0.06,195.23,195.2,1.01229508]
[1753114403625,16.67804394,195.22,195.1,5.12557662]
[1753114403829,15.97804394,195.21,195.15,15.97804394]
[1753114404027,0.7,195.22,195.17,15.97804394]
[1753114404245,15.97804394,195.22,195.17,15.97804394]
[1753114404558,0.7,195.21,195.16,15.97804394]
[1753114404939,0.7,195.21,195.13,5.12452736]
[1753114404940,15.97804394,195.18,195.12,15.97804394]
[1753114405245,0.76,195.2,195.13,15.97804394]
[1753114405449,16.78468397,195.17,195.13,15.97804394]
[1753114405629,16.78468397,195.18,195.13,15.97804394]
[1753114405825,0.76,195.2,195.15,15.97804394]
[1753114406046,40.58,195.2,195.16,15.97804394]
[1753114406225,40.58,195.2,195.15,15.97804394]
[1753114406429,16.78468397,195.18,195.06,5.1265007]
[1753114406629,16.78468397,195.18,195.03,13.31825584]
[1753114406630,15.97804394,195.14,195.07,26.0]
[1753114406945,32.76272791,195.16,195.11,15.97804394]
[1753114407260,32.76272791,195.16,195.07,26.0]
[1753114407261,0.7,195.15,195.09,15.97804394]
[1753114407565,39.88,195.2,195.14,15.97804394]
[1753114407566,16.03804394,195.2,195.14,15.97804394]
[1753114407854,0.06,195.2,195.15,15.97804394]
[1753114408231,16.03804394,195.2,195.15,15.97804394]
[1753114408549,0.06,195.2,195.13,5.1247886]
[1753114408856,0.06,195.2,195.16,15.97804394]
[1753114409738,16.78468397,195.18,195.11,15.97804394]
[1753114409939,32.76272791,195.18,195.12,15.97804394]
[1753114410524,32.76272791,195.18,195.13,15.97804394]
[1753114410730,16.78468397,195.18,195.13,21.10270584]
[1753114410937,0.06,195.2,195.17,15.97804394]
[1753114411150,0.06,195.2,195.18,15.97804394]
[1753114411354,0.06,195.2,195.17,15.97804394]
[1753114411660,0.06,195.2,195.16,15.97804394]
[1753114411950,0.77,195.2,195.1,26.0]
[1753114412130,16.03804394,195.2,195.15,15.97804394]
[1753114412331,0.06,195.2,195.17,15.97804394]
[1753114412645,0.06,195.2,195.18,15.97804394]
[1753114412845,0.06,195.2,195.18,21.10146941]
[1753114413039,0.06,195.2,195.19,15.97804394]
[1753114413259,0.06,195.2,195.16,31.12375452]
[1753114413459,0.06,195.2,195.18,15.97804394]
[1753114413835,0.06,195.2,195.16,31.12375452]
[1753114414035,0.06,195.2,195.19,15.97804394]
[1753114414348,0.06,195.2,195.16,31.12375452]
[1753114414544,0.06,195.2,195.17,15.97804394]
[1753114414858,0.06,195.2,195.18,15.97804394]
[1753114415457,0.06,195.2,195.17,0.51237382]
[1753114415648,0.06,195.2,195.19,15.97804394]
[1753114415970,16.74804394,195.2,195.14,15.97804394]
[1753114416136,0.77,195.2,195.13,15.97804394]
[1753114416334,15.97804394,195.19,195.14,15.97804394]
[1753114416552,55.87804394,195.2,195.15,15.97804394]
[1753114416739,61.71112038,195.2,195.12,31.12495991]
[1753114417061,61.71112038,195.2,195.07,15.97804394]
[1753114417062,15.97804394,195.13,195.07,15.97804394]
[1753114417259,39.82,195.14,194.98,0.8327]
[1753114417443,16.68804394,195.12,195.06,15.97804394]
[1753114417837,39.82,195.13,195.08,15.97804394]
[1753114418065,39.82,195.13,195.04,0.51271534]
[1753114418066,39.8,195.13,195.1,15.97804394]
[1753114419050,39.8,195.15,195.09,0.51258393]
[1753114419251,39.8,195.15,195.11,15.97804394]
[1753114419443,39.82,195.16,195.12,15.97804394]
[1753114419648,40.53,195.16,195.12,15.97804394]
[1753114419848,0.71,195.15,195.12,15.97804394]
[1753114420055,0.71,195.15,195.09,5.63840298]
[1753114420260,0.71,195.15,195.12,15.97804394]
[1753114420968,39.82,195.16,195.13,15.97804394]
[1753114422167,16.68804394,195.19,195.12,5.12503786]
[1753114422168,39.74,195.17,195.12,5.12503786]
[1753114422365,39.74,195.17,195.14,15.97804394]
[1753114422751,39.74,195.17,195.15,15.97804394]
[1753114422947,0.06,195.2,195.16,21.10204475]
[1753114423255,0.06,195.2,195.17,15.97804394]
[1753114423746,0.06,195.2,195.16,15.97804394]
[1753114423943,0.06,195.2,195.17,15.97804394]
[1753114424266,0.71,195.19,195.15,15.97804394]
[1753114424453,16.84468397,195.2,195.15,15.97804394]
[1753114424645,17.55468397,195.2,195.13,5.1247886]
[1753114424840,38.65574333,195.2,195.14,5.12448306]
[1753114425045,38.65574333,195.2,195.15,15.97804394]
[1753114425046,17.55468397,195.2,195.15,15.97804394]
[1753114425246,0.06,195.2,195.17,15.97804394]
[1753114425446,0.06,195.2,195.18,15.97804394]
[1753114425746,0.06,195.2,195.13,0.5]
[1753114425942,0.06,195.2,195.14,0.51245259]
[1753114426163,0.06,195.2,195.15,15.97804394]
[1753114426367,0.06,195.2,195.12,0.51250512]
[1753114426568,0.06,195.2,195.17,15.97804394]
[1753114426952,0.06,195.2,195.13,5.1247886]
[1753114427152,0.06,195.2,195.17,15.97804394]
[1753114427578,0.06,195.18,195.17,15.97804394]
[1753114428575,0.77,195.18,195.14,26.0]
[1753114428744,0.06,195.18,195.15,15.97804394]
[1753114428946,0.06,195.18,195.16,21.10193133]
[1753114429370,0.06,195.18,195.16,15.97804394]
[1753114429877,0.06,195.18,195.15,5.12425494]
[1753114430078,0.06,195.18,195.16,15.97804394]
[1753114430255,0.06,195.18,195.15,5.12425494]
[1753114430457,0.06,195.18,195.17,15.97804394]
[1753114430880,0.06,195.18,195.15,5.12425494]
[1753114431084,0.06,195.18,195.16,21.10202172]
[1753114431255,0.06,195.18,195.17,15.97804394]
[1753114432474,0.06,195.18,195.16,31.12397778]
[1753114432661,0.06,195.18,195.17,15.97804394]
[1753114433261,0.06,195.18,195.17,21.10178221]
[1753114434172,0.06,195.18,195.17,21.60178221]
[1753114434687,0.06,195.18,195.17,60.98178221]
[1753114435082,0.06,195.2,195.19,31.12321327]
[1753114435278,0.06,195.2,195.19,47.61357853]
[1753114435578,0.06,195.2,195.19,48.11357853]
[1753114435988,0.06,195.2,195.19,32.13553459]
[1753114436168,0.06,195.2,195.19,48.11357853]
[1753114436575,1e-08,195.2,195.19,48.11357853]
[1753114438461,1e-08,195.23,195.19,18.94356778]
[1753114438666,1e-08,195.23,195.22,41.97804394]
[1753114438855,1e-08,195.24,195.22,42.49028653]
[1753114439058,1e-08,195.24,195.23,60.84020754]
[1753114439882,1e-08,195.24,195.23,21.60020754]
[1753114440268,1e-08,195.24,195.23,9.65771183]
[1753114440466,1e-08,195.24,195.22,0.51224259]
[1753114440467,0.71000001,195.24,195.22,0.51224259]
[1753114440677,39.3,195.23,195.12,0.51250512]
[1753114440875,0.71,195.22,195.12,0.51250512]
[1753114441088,5.12344342,195.19,195.11,5.12531392]
[1753114441388,15.97804394,195.14,195.1,0.51255766]
[1753114441595,16.78468397,195.15,195.08,0.03]
[1753114441897,16.78468397,195.15,195.08,35.78516416]
[1753114442063,56.26468397,195.18,195.13,15.97804394]
[1753114442263,56.26468397,195.18,195.14,15.97804394]
[1753114442490,56.98468397,195.18,195.14,15.97804394]
[1753114442794,16.78468397,195.23,195.15,1.01242633]
[1753114442964,15.97804394,195.22,195.17,15.97804394]
[1753114443161,16.78468397,195.15,195.08,0.03]
[1753114443383,15.97804394,195.12,195.08,0.03]
[1753114443571,32.76272791,195.09,195.08,0.03]
[1753114443775,72.30272791,195.09,195.04,0.03]
[1753114443989,32.76272791,195.05,195.04,0.03]
[1753114444189,16.78468397,195.05,195.04,0.03]
[1753114444496,16.69804394,195.05,195.04,0.03]
[1753114444661,16.69804394,195.05,194.94,5.12953116]
[1753114444662,16.69804394,195.05,194.95,15.97804394]
[1753114444868,39.52,195.07,194.96,15.97804394]
[1753114444869,16.78468397,195.03,194.96,15.97804394]
[1753114445171,15.97804394,195.0,194.94,15.97804394]
[1753114445363,0.72,195.02,194.98,15.97804394]
[1753114445576,40.22,195.06,194.99,15.97804394]
[1753114445773,15.97804394,195.04,194.99,15.97804394]
[1753114445965,16.78468397,195.03,194.96,26.0]
[1753114446285,16.78468397,195.05,195.0,41.97804394]
[1753114446491,16.78468397,195.03,194.98,15.97804394]
[1753114446666,16.78468397,195.03,194.96,26.56]
[1753114446667,32.76272791,195.05,195.0,41.97804394]
[1753114447278,16.78468397,195.08,195.02,15.97804394]
[1753114447588,16.78468397,195.08,195.04,41.97804394]
[1753114447790,0.72,195.09,195.04,41.97804394]
[1753114448088,72.24272791,195.11,195.06,15.97804394]
[1753114448290,0.72,195.1,195.05,15.97804394]
[1753114448889,0.72,195.1,195.06,15.97804394]
[1753114449192,16.78468397,195.13,195.1,5.12557662]
[1753114449488,16.78468397,195.13,195.11,15.97804394]
[1753114449884,16.78468397,195.14,195.11,15.97804394]
[1753114450403,16.78468397,195.14,195.1,31.12557662]
[1753114450589,17.50468397,195.14,195.1,31.12557662]
[1753114450965,0.72,195.13,195.1,26.0]
[1753114451163,0.72,195.12,195.1,26.0]
[1753114451568,17.50468397,195.14,195.1,47.10348935]
[1753114451794,17.50468397,195.14,195.1,31.12544541]
[1753114451997,0.72,195.13,195.1,26.0]
[1753114452175,0.72,195.12,195.1,26.0]
[1753114452495,0.72,195.12,195.08,15.97804394]
[1753114452496,0.72,195.13,195.08,15.97804394]
[1753114452676,0.72,195.12,195.08,5.12588706]
[1753114452878,0.72,195.12,195.08,21.103931]
[1753114453289,32.76272791,195.1,195.05,15.97804394]
[1753114453598,16.78468397,195.08,195.07,26.0]
[1753114453980,16.78468397,195.08,195.02,5.12765515]
[1753114453981,33.48272791,195.08,195.02,5.12765515]
[1753114454167,16.78468397,195.06,195.02,21.10569909]
[1753114454371,16.78468397,195.09,195.05,15.97804394]
[1753114454604,39.34,195.1,195.02,18.50685318]
[1753114454813,16.78468397,195.09,195.06,15.97804394]
[1753114455307,16.78468397,195.09,195.06,5.1266277]
[1753114455788,39.34,195.1,195.06,31.1266277]
[1753114455985,16.78468397,195.13,195.09,41.97804394]
[1753114456173,16.78468397,195.13,195.1,15.97804394]
[1753114456368,17.50468397,195.13,195.1,15.97804394]
[1753114456995,16.78468397,195.18,195.12,15.97804394]
[1753114457295,16.78468397,195.16,195.15,15.97804394]
[1753114457472,17.50468397,195.16,195.13,15.97804394]
[1753114457672,32.76272791,195.14,195.01,0.56]
[1753114457890,16.78468397,195.11,195.07,15.97804394]
[1753114458269,17.50468397,195.11,195.07,15.97804394]
[1753114458469,0.72,195.1,195.07,15.97804394]
[1753114458701,16.78468397,195.09,195.06,41.97804394]
[1753114458879,16.78468397,195.11,195.08,15.97804394]
[1753114459389,16.78468397,195.11,195.09,5.12559494]
[1753114459588,16.78468397,195.09,195.06,15.97804394]
[1753114459790,16.78468397,195.09,195.04,26.0]
[1753114460000,16.78468397,195.09,195.06,15.97804394]
[1753114460178,16.78468397,195.11,195.07,15.97804394]
[1753114460380,16.78468397,195.11,195.09,15.97804394]
[1753114460590,16.78468397,195.13,195.1,15.97804394]
[1753114460778,16.78468397,195.13,195.11,15.97804394]
[1753114460989,16.78468397,195.13,195.08,26.0]
[1753114461185,16.78468397,195.13,195.11,15.97804394]
[1753114461589,16.78468397,195.13,195.12,5.12505125]
[1753114462601,16.78468397,195.13,195.1,15.97804394]
[1753114462925,16.78468397,195.11,195.09,21.10388329]
[1753114463411,39.22,195.14,195.1,15.97804394]
[1753114463703,56.00468397,195.14,195.13,15.97804394]
[1753114463899,16.78468397,195.18,195.13,15.97804394]
[1753114464104,55.92468397,195.18,195.11,5.12531392]
[1753114464279,71.90272791,195.18,195.11,5.12531392]
[1753114464478,16.78468397,195.16,195.13,15.97804394]
[1753114464803,16.78468397,195.16,195.14,15.97804394]
[1753114465002,16.78468397,195.17,195.15,15.97804394]
[1753114465317,0.06,195.2,195.16,41.97804394]
[1753114465473,0.06,195.2,195.19,21.10125721]
[1753114466687,0.06,195.2,195.19,21.66125721]
[1753114467198,0.06,195.2,195.19,22.17357853]
[1753114467679,1e-08,195.24,195.19,34.98161172]
[1753114467878,1e-08,195.24,195.23,15.97804394]
[1753114468691,0.72000001,195.24,195.22,26.0]
[1753114468898,1e-08,195.24,195.23,15.97804394]
[1753114469804,1e-08,195.24,195.23,21.10020754]
[1753114470604,1e-08,195.24,195.23,15.97804394]
[1753114470783,16.78468398,195.24,195.23,15.97804394]
[1753114471209,16.78468398,195.24,195.22,26.0]
[1753114471418,16.78468398,195.24,195.2,15.97804394]
[1753114471419,16.78468397,195.23,195.2,15.97804394]
[1753114471585,17.44468397,195.23,195.2,15.97804394]
[1753114471786,17.44468397,195.23,195.21,15.97804394]
[1753114472102,1e-08,195.24,195.22,15.97804394]
[1753114472307,1e-08,195.24,195.21,15.97804394]
[1753114472483,1e-08,195.24,195.23,15.97804394]
[1753114472884,1e-08,195.24,195.23,16.53804394]
[1753114473194,1e-08,195.24,195.23,42.53804394]
[1753114473381,1e-08,195.24,195.23,41.97804394]
[1753114473809,1e-08,195.24,195.23,47.10020754]
[1753114473996,1e-08,195.24,195.22,21.10042683]
[1753114474180,1e-08,195.24,195.22,15.97804394]
[1753114474381,16.78468397,195.22,195.16,5.12400081]
[1753114474607,0.66,195.23,195.21,26.0]
[1753114474808,1e-08,195.24,195.21,41.97804394]
[1753114474989,16.78468397,195.23,195.21,26.0]
[1753114475694,16.78468397,195.23,195.21,31.12256894]
[1753114475911,39.38792792,195.24,195.16,0.51240008]
[1753114476203,16.78468397,195.18,195.13,15.97804394]
[1753114476418,16.78468397,195.16,195.12,21.10309519]
[1753114476617,16.78468397,195.16,195.11,26.0]
[1753114476618,16.78468397,195.14,195.13,26.0]
[1753114476819,17.44468397,195.14,195.1,21.10340775]
[1753114477107,16.78468397,195.15,195.12,15.97804394]
[1753114477318,0.66,195.15,195.12,26.0]
[1753114477517,0.66,195.15,195.11,15.97804394]
[1753114477718,16.78468397,195.13,195.1,5.12536381]
[1753114477884,0.66,195.13,195.09,21.1038529]
[1753114478215,16.78468397,195.12,195.1,15.97804394]
[1753114478399,16.78468397,195.12,195.11,15.97804394]
[1753114478603,15.97804394,195.14,195.08,21.10411655]
[1753114478913,16.78468397,195.1,195.06,15.97804394]
[1753114479087,17.44468397,195.1,195.06,41.97804394]
[1753114479290,16.78468397,195.08,195.06,26.0]
[1753114479603,16.78468397,195.11,195.07,54.91804394]
[1753114479790,16.78468397,195.11,195.09,15.97804394]
[1753114479987,16.78468397,195.11,195.05,17.24841148]
[1753114479988,2.667,194.9,194.8,15.368459]
[1753114480187,5.35446792,194.89,194.75,0.03]
[1753114480386,2.67230882,194.87,194.76,2.66984771]
[1753114480612,2.67230882,194.87,194.75,5.16475575]
[1753114480613,0.51276792,194.86,194.84,15.97804394]
[1753114480915,2.67230882,194.87,194.85,15.97804394]
[1753114481089,2.67230882,194.87,194.79,41.1]
[1753114481090,2.67230882,194.87,194.86,15.97804394]
[1753114481285,3.33230882,194.87,194.77,0.71]
[1753114481722,2.67230882,194.87,194.84,15.97804394]
[1753114482013,2.67230882,194.87,194.86,41.97804394]
[1753114482190,2.67230882,194.87,194.86,43.20123289]
[1753114482385,2.667,194.9,194.86,43.20123289]
[1753114482586,10.0,195.07,194.86,43.20123289]
[1753114482587,0.51276792,195.03,194.92,26.0]
[1753114482811,0.51276792,195.03,194.89,15.97804394]
[1753114482812,0.66,195.02,194.96,26.0]
[1753114483023,0.66,195.02,194.87,0.71]
[1753114483024,15.97804394,194.99,194.87,0.71]
[1753114483309,6.0232,195.07,194.87,0.71]
[1753114483310,1.17276792,194.98,194.89,15.97804394]
[1753114483485,1.17276792,194.98,194.88,26.0]
[1753114483486,0.66,194.97,194.93,15.97804394]
[1753114483690,0.66,194.97,194.95,21.10750956]
[1753114483890,1.17276792,195.0,194.95,21.10750956]
[1753114484093,16.63804394,194.99,194.93,15.97804394]
[1753114484317,0.51276792,194.98,194.94,15.97804394]
[1753114484619,0.66,194.97,194.94,15.97804394]
[1753114484990,0.66,194.96,194.93,15.97804394]
[1753114485386,0.51276792,194.99,194.94,15.97804394]
[1753114485613,1.17276792,194.99,194.95,15.97804394]
[1753114485802,0.51276792,195.0,194.98,41.97804394]
[1753114486119,0.66,195.03,194.98,41.97804394]
[1753114486300,1.17276792,195.02,194.98,41.97804394]
[1753114486499,0.66,195.01,194.96,21.10730122]
[1753114486704,0.66,195.0,194.96,47.10730122]
[1753114486913,0.66,195.0,194.97,15.97804394]
[1753114487301,0.66,194.99,194.98,26.0]
[1753114487507,0.51276792,195.02,194.97,26.0]
[1753114487819,0.51276792,195.02,194.98,5.12873115]
[1753114488017,0.66,195.01,194.98,5.12873115]
[1753114488215,0.66,195.01,194.98,21.10677509]
[1753114488418,1.17276792,195.0,194.98,5.12873115]
[1753114488620,0.66,194.99,194.82,10.0]
[1753114488921,15.97804394,194.97,194.91,15.97804394]
[1753114489102,0.51276792,194.96,194.89,40.96]
[1753114489309,0.51276792,194.98,194.94,15.97804394]
[1753114489503,0.51276792,194.98,194.95,15.97804394]
[1753114489819,0.66,194.99,194.96,5.12925728]
[1753114490117,16.78468397,194.97,194.96,5.12925728]
[1753114490500,16.78468397,194.98,194.96,5.12925728]
[1753114490700,0.66,194.97,194.96,5.12925728]
[1753114490900,0.66,194.97,194.95,5.12951896]
[1753114491519,16.78468397,194.96,194.95,5.12951896]
[1753114491822,16.78468397,194.99,194.95,21.1075629]
[1753114492121,17.95745189,194.99,194.95,21.1075629]
[1753114492497,0.66,194.98,194.95,5.12951896]
[1753114492825,17.29745189,194.99,194.96,15.97804394]
[1753114493018,0.66,194.99,194.95,21.1075629]
[1753114493215,1.17276792,194.99,194.95,21.1075629]
[1753114493409,0.51276792,194.99,194.95,21.1075629]
[1753114493624,16.78468397,194.95,194.93,0.03]
[1753114493831,16.78468397,194.93,194.89,0.03]
[1753114494003,32.76272791,194.91,194.89,0.03]
[1753114494208,17.29745189,194.9,194.89,0.03]
[1753114494502,17.44468397,194.9,194.89,0.03]
[1753114494707,16.78468397,194.9,194.89,0.03]
[1753114495419,17.95745189,194.9,194.89,0.03]
[1753114495621,16.78468397,194.9,194.89,0.03]